lending/lending_fUSD_20250501
["ID","MTS","AMOUNT","RATE_DAILY","PERIOD"]
[359537059,1746096650709,-504.52,0.00038356,18]
[359537061,1746096650718,-550.22492481,0.00038356,18]
[359537063,1746096650728,-527.7952711,0.00038356,18]
[359537065,1746096650737,-728.6,0.00038356,18]
[359537067,1746096650747,-450.0,0.00038356,18]
[359537069,1746096650756,-250.0,0.00038356,18]
[359537071,1746096650765,-521.02,0.00038356,18]
[359537073,1746096650776,-1369.43,0.00038356,18]
[359537075,1746096650785,-450.0,0.00038356,18]
[359537077,1746096650794,-450.0,0.00038356,18]
[359537079,1746096650804,-190.52831965,0.00038356,18]
[359537081,1746096650814,-554.67778276,0.00038356,18]
[359537083,1746096650823,-450.0,0.00038356,18]
[359537085,1746096650832,-819.88,0.00038356,18]
[359537087,1746096650842,-450.0,0.00038356,18]
[359537089,1746096650852,-663.39,0.00038356,18]
[359537091,1746096650861,-450.0,0.00038356,18]
[359537093,1746096650871,-548.78468604,0.00038356,18]
[359537095,1746096650880,-596.80380541,0.00038356,18]
[359537097,1746096650889,-595.17,0.00038356,18]
[359537099,1746096650899,-450.0,0.00038356,18]
[359537101,1746096650908,-537.60165732,0.00038356,18]
[359537103,1746096650917,-450.0,0.00038356,18]
[359537105,1746096650927,-450.0,0.00038356,18]
[359537107,1746096650936,-450.0,0.00038356,18]
[359537109,1746096650945,-450.0,0.00038356,18]
[359537111,1746096650954,-800.63,0.00038356,18]
[359537113,1746096650963,-450.0,0.00038356,18]
[359537115,1746096650972,-589.87386603,0.00038356,18]
[359537117,1746096650982,-1152.5,0.00038356,18]
[359537119,1746096650991,-450.0,0.00038356,18]
[359537121,1746096651001,-521.49379354,0.00038356,18]
[359537123,1746096651010,-450.0,0.00038356,18]
[359537125,1746096651019,-150.0,0.00038356,18]
[359537127,1746096651031,-450.0,0.00038356,18]
[359537129,1746096651040,-501.56,0.00038356,18]
[359537131,1746096651050,-450.0,0.00038356,18]
[359537133,1746096651059,-693.88,0.00038356,18]
[359537135,1746096651069,-450.0,0.00038356,18]
[359537137,1746096651079,-450.0,0.00038356,18]
[359537139,1746096651088,-450.0,0.00038356,18]
[359537141,1746096651098,-450.0,0.00038356,18]
[359537143,1746096651107,-450.0,0.00038356,18]
[359537145,1746096651116,-450.0,0.00038356,18]
[359537146,1746096651126,-557.21,0.00038356,18]
[359537148,1746096651136,-450.0,0.00038356,18]
[359537150,1746096651145,-526.0,0.00038356,18]
[359537152,1746096651155,-450.0,0.00038356,18]
[359537154,1746096651164,-450.0,0.00038356,18]
[359537156,1746096651173,-450.0,0.00038356,18]
[359537158,1746096651182,-450.0,0.00038356,18]
[359537160,1746096651192,-450.0,0.00038356,18]
[359537162,1746096651202,-450.0,0.00038356,18]
[359537164,1746096651211,-678.05,0.00038356,18]
[359537166,1746096651221,-450.0,0.00038356,18]
[359537168,1746096651230,-450.0,0.00038356,18]
[359537170,1746096651240,-450.0,0.00038356,18]
[359537172,1746096651249,-4543.2,0.00038356,18]
[359537174,1746096651258,-187.84575841,0.00038356,18]
[359537176,1746096651268,-500.0,0.00038356,18]
[359537178,1746096651277,-528.23766919,0.00038356,18]
[359537180,1746096651286,-565.84455917,0.00038356,18]
[359537182,1746096651296,-450.0,0.00038356,18]
[359537184,1746096651305,-450.0,0.00038356,18]
[359537186,1746096651314,-450.0,0.00038356,18]
[359537188,1746096651324,-450.0,0.00038356,18]
[359537190,1746096651333,-450.0,0.00038356,18]
[359537192,1746096651342,-450.0,0.00038356,18]
[359537194,1746096651351,-450.0,0.00038356,18]
[359537196,1746096651360,-450.0,0.00038356,18]
[359537198,1746096651370,-450.0,0.00038356,18]
[359537200,1746096651379,-450.0,0.00038356,18]
[359537202,1746096651388,-530.22484186,0.00038356,18]
[359537204,1746096651397,-520.64239275,0.00038356,18]
[359537206,1746096651407,-450.0,0.00038356,18]
[359537208,1746096651416,-450.0,0.00038356,18]
[359537210,1746096651425,-450.0,0.00038356,18]
[359537212,1746096651434,-799.21,0.00038356,8]
[359537213,1746096651445,-450.0,0.00038356,18]
[359537214,1746096651454,-541.735546,0.00038356,18]
[359537215,1746096651464,-450.0,0.00038356,18]
[359537216,1746096651474,-450.0,0.00038356,18]
[359537217,1746096651484,-633.13,0.00038356,18]
[359537218,1746096651496,-450.0,0.00038356,18]
[359537219,1746096651505,-450.0,0.00038356,18]
[359537220,1746096651514,-677.26,0.00038356,18]
[359537221,1746096651523,-450.0,0.00038356,18]
[359537222,1746096651532,-519.55838037,0.00038356,18]
[359537223,1746096651541,-450.0,0.00038356,18]
[359537224,1746096651551,-492.09,0.00038356,18]
[359537225,1746096651560,-1005.0,0.00038356,18]
[359537227,1746096651570,-450.0,0.00038356,18]
[359537229,1746096651579,-450.0,0.00038356,18]
[359537231,1746096651588,-617.94,0.00038356,18]
[359537233,1746096651598,-518.83,0.00038356,18]
[359537235,1746096651607,-450.0,0.00038356,18]
[359537237,1746096651616,-991.33,0.00038356,18]
[359537239,1746096651625,-450.0,0.00038356,18]
[359537241,1746096651635,-450.0,0.00038356,18]
[359537243,1746096651644,-950.73,0.00038356,18]
[359537245,1746096651653,-520.80288508,0.00038356,18]
[359537247,1746096651663,-509.1391418,0.00038356,18]
[359537249,1746096651672,-450.0,0.00038356,18]
[359537264,1746096651813,-450.0,0.00038356,18]
[359537266,1746096651822,-450.0,0.00038356,18]
[359537269,1746096651832,-450.0,0.00038356,18]
[359537271,1746096651841,-450.0,0.00038356,18]
[359537272,1746096651850,-450.0,0.00038356,18]
[359537274,1746096651859,-568.73356273,0.00038356,18]
[359537276,1746096651868,-450.0,0.00038356,18]
[359537278,1746096651877,-353.68569984,0.00038356,18]
[359537280,1746096651886,-450.0,0.00038356,18]
[359537282,1746096651895,-450.0,0.00038356,18]
[359537284,1746096651904,-450.0,0.00038356,18]
[359537286,1746096651913,-453.89,0.00038356,18]
[359537288,1746096651923,-450.0,0.00038356,18]
[359537290,1746096651932,-678.75,0.00038356,18]
[359537292,1746096651941,-450.0,0.00038356,18]
[359537294,1746096651950,-450.0,0.00038356,3]
[359537296,1746096651959,-540.89207615,0.00038356,18]
[359537298,1746096651968,-450.0,0.00038356,18]
[359537300,1746096651978,-450.0,0.00038356,18]
[359537302,1746096651987,-508.98959065,0.00038356,18]
[359537304,1746096651996,-553.44613563,0.00038356,18]
[359537306,1746096652005,-450.0,0.00038356,18]
[359537308,1746096652014,-450.0,0.00038356,18]
[359537310,1746096652023,-500.14072242,0.00038356,18]
[359537312,1746096652036,-450.0,0.00038356,18]
[359537314,1746096652045,-692.1,0.00038356,18]
[359537316,1746096652055,-518.73157857,0.00038356,18]
[359537318,1746096652064,-450.0,0.00038356,18]
[359537320,1746096652075,-450.0,0.00038356,18]
[359537323,1746096652088,-483.13,0.00038356,18]
[359537325,1746096652096,-450.0,0.00038356,18]
[359537327,1746096652106,-450.0,0.00038356,18]
[359537329,1746096652116,-512.44,0.00038356,18]
[359537331,1746096652125,-450.0,0.00038356,18]
[359537333,1746096652135,-450.0,0.00038356,18]
[359537335,1746096652144,-450.0,0.00038356,7]
[359537336,1746096652153,-450.0,0.00038356,18]
[359537338,1746096652162,-450.0,0.00038356,18]
[359537340,1746096652171,-679.38,0.00038356,18]
[359537342,1746096652181,-486.45,0.00038356,18]
[359537344,1746096652190,-255.51407844,0.00038356,18]
[359537346,1746096652200,-1090.27,0.00038356,18]
[359537348,1746096652209,-450.0,0.00038356,18]
[359537350,1746096652218,-450.0,0.00038356,18]
[359537352,1746096652230,-487.25,0.00038356,18]
[359537354,1746096652240,-450.0,0.00038356,18]
[359537356,1746096652251,-450.0,0.00038356,18]
[359537358,1746096652261,-450.0,0.00038356,18]
[359537360,1746096652271,-450.0,0.00038356,18]
[359537362,1746096652282,-450.0,0.00038356,18]
[359537364,1746096652291,-492.13,0.00038356,18]
[359537366,1746096652302,-615.46,0.00038356,18]
[359537368,1746096652312,-528.23547263,0.00038356,18]
[359537370,1746096652321,-450.0,0.00038356,18]
[359537372,1746096652332,-450.0,0.00038356,18]
[359537374,1746096652342,-2034.83,0.00038356,18]
[359537376,1746096652351,-504.23488336,0.00038356,18]
[359537378,1746096652360,-450.0,0.00038356,18]
[359537380,1746096652370,-1832.41,0.00038356,18]
[359537382,1746096652379,-287.5586945,0.00038356,15]
[359537384,1746096652389,-450.0,0.00038356,18]
[359537386,1746096652398,-590.01,0.00038356,18]
[359537388,1746096652407,-450.0,0.00038356,18]
[359537390,1746096652415,-450.0,0.00038356,18]
[359537392,1746096652425,-450.0,0.00038356,18]
[359537394,1746096652434,-450.0,0.00038356,18]
[359537396,1746096652443,-509.65120947,0.00038356,18]
[359537398,1746096652452,-450.0,0.00038356,18]
[359537400,1746096652463,-450.0,0.00038356,18]
[359537402,1746096652472,-596.34,0.00038356,18]
[359537404,1746096652483,-450.0,0.00038356,18]
[359537406,1746096652493,-450.0,0.00038356,18]
[359537408,1746096652503,-450.0,0.00038356,18]
[359537410,1746096652512,-9851.67,0.00038356,18]
[359537412,1746096652521,-450.0,0.00038356,18]
[359537414,1746096652530,-503.34,0.00038356,18]
[359537416,1746096652542,-450.0,0.00038356,18]
[359537418,1746096652551,-527.12201752,0.00038356,18]
[359537420,1746096652560,-450.0,0.00038356,18]
[359537422,1746096652569,-494.38,0.00038356,18]
[359537424,1746096652578,-450.0,0.00038356,18]
[359537426,1746096652587,-450.0,0.00038356,18]
[359537428,1746096652597,-450.0,0.00038356,18]
[359537430,1746096652606,-450.0,0.00038356,18]
[359537432,1746096652615,-450.0,0.00038356,18]
[359537434,1746096652625,-450.0,0.00038356,18]
[359537436,1746096652634,-515.48196565,0.00038356,18]
[359537438,1746096652644,-598.03,0.00038356,18]
[359537440,1746096652653,-450.0,0.00038356,18]
[359537442,1746096652662,-450.0,0.00038356,18]
[359537444,1746096652671,-450.0,0.00038356,18]
[359537446,1746096652680,-513.00217537,0.00038356,18]
[359537448,1746096652690,-532.66,0.00038356,18]
[359537450,1746096652699,-450.0,0.00038356,18]
[359537452,1746096652709,-1220.48,0.00038356,18]
[359537454,1746096652718,-946.67,0.00038356,18]
[359537456,1746096652728,-556.02991113,0.00038356,18]
[359537458,1746096652738,-450.0,0.00038356,18]
[359537460,1746096652747,-450.0,0.00038356,18]
[359537462,1746096652756,-450.0,0.00038356,18]
[359537464,1746096652766,-450.0,0.00038356,18]
[359537466,1746096652775,-450.0,0.00038356,18]
[359537468,1746096652784,-596.0721259,0.00038356,18]
[359537470,1746096652795,-537.22130242,0.00038356,18]
[359537472,1746096652804,-450.0,0.00038356,18]
[359537474,1746096652813,-450.0,0.00038356,18]
[359537476,1746096652823,-450.0,0.00038356,18]
[359537478,1746096652832,-199.06798578,0.00038356,18]
[359537480,1746096652842,-524.29,0.00038356,18]
[359537482,1746096652851,-450.0,0.00038356,18]
[359537484,1746096652861,-577.80495512,0.00038356,18]
[359537486,1746096652870,-450.0,0.00038356,18]
[359537488,1746096652879,-450.0,0.00038356,18]
[359537490,1746096652888,-704.44,0.00038356,18]
[359537492,1746096652897,-450.0,0.00038356,18]
[359537494,1746096652906,-450.0,0.00038356,18]
[359537496,1746096652915,-450.0,0.00038356,18]
[359537498,1746096652925,-944.82,0.00038356,18]
[359537500,1746096652934,-450.0,0.00038356,18]
[359537502,1746096652944,-504.84128196,0.00038356,18]
[359537504,1746096652953,-450.0,0.00038356,18]
[359537506,1746096652963,-551.45112581,0.00038356,18]
[359537508,1746096652973,-450.0,0.00038356,18]
[359537510,1746096652984,-495.49,0.00038356,18]
[359537512,1746096652993,-450.0,0.00038356,18]
[359537514,1746096653002,-450.0,0.00038356,18]
[359537517,1746096653011,-450.0,0.00038356,18]
[359537518,1746096653021,-450.0,0.00038356,18]
[359537521,1746096653035,-450.0,0.00038356,18]
[359537523,1746096653044,-665.92,0.00038356,18]
[359537524,1746096653053,-450.0,0.00038356,18]
[359537526,1746096653062,-450.0,0.00038356,18]
[359537528,1746096653071,-581.73,0.00038356,18]
[359537530,1746096653080,-500.0,0.00038356,18]
[359537532,1746096653089,-2595.87,0.00038356,18]
[359537534,1746096653100,-450.0,0.00038356,18]
[359537536,1746096653109,-450.0,0.00038356,18]
[359537538,1746096653118,-450.0,0.00038356,18]
[359537540,1746096653127,-450.0,0.00038356,18]
[359537542,1746096653136,-450.0,0.00038356,18]
[359537544,1746096653145,-413.7578742,0.00038356,18]
[359537546,1746096653155,-450.0,0.00038356,18]
[359537548,1746096653164,-720.65,0.00038356,18]
[359537550,1746096653174,-476.09915212,0.00038356,18]
[359537552,1746096653183,-450.0,0.00038356,18]
[359537554,1746096653194,-450.0,0.00038356,18]
[359537556,1746096653204,-450.0,0.00038356,2]
[359537558,1746096653213,-450.0,0.00038356,18]
[359537560,1746096653222,-450.0,0.00038356,18]
[359537562,1746096653232,-450.0,0.00038356,18]
[359537564,1746096653241,-450.0,0.00038356,18]
[359537566,1746096653251,-476.43,0.00038356,18]
[359537568,1746096653261,-500.48024201,0.00038356,18]
[359537570,1746096653271,-450.0,0.00038356,18]
[359537572,1746096653281,-101034.88,0.00038356,18]
[359537574,1746096653291,-450.0,0.00038356,18]
[359537576,1746096653301,-450.0,0.00038356,18]
[359537578,1746096653311,-962.68,0.00038356,18]
[359537580,1746096653321,-543.49,0.00038356,18]
[359537582,1746096653330,-450.0,0.00038356,18]
[359537584,1746096653340,-580.40398981,0.00038356,18]
[359537586,1746096653350,-509.25969777,0.00038356,18]
[359537588,1746096653359,-450.0,0.00038356,18]
[359537590,1746096653369,-513.04209105,0.00038356,18]
[359537592,1746096653378,-450.0,0.00038356,18]
[359537594,1746096653387,-450.0,0.00038356,5]
[359537596,1746096653397,-504.03626393,0.00038356,18]
[359537598,1746096653407,-450.0,0.00038356,18]
[359537600,1746096653416,-450.0,0.00038356,18]
[359537602,1746096653426,-375.94943066,0.00038356,18]
[359537603,1746096653435,-450.0,0.00038356,18]
[359537604,1746096653444,-623.56,0.00038356,18]
[359537605,1746096653453,-705.15,0.00038356,18]
[359537606,1746096653462,-474.8299374,0.00038356,18]
[359537607,1746096653472,-450.0,0.00038356,18]
[359537608,1746096653482,-450.0,0.00038356,18]
[359537609,1746096653491,-450.0,0.00038356,18]
[359537610,1746096653501,-599.02976652,0.00038356,18]
[359537611,1746096653510,-450.0,0.00038356,18]
[359537612,1746096653519,-450.0,0.00038356,18]
[359537613,1746096653528,-450.0,0.00038356,18]
[359537614,1746096653538,-517.23,0.00038356,18]
[359537616,1746096653547,-829.73,0.00038356,18]
[359537618,1746096653556,-450.0,0.00038356,2]
[359537620,1746096653565,-553.33234687,0.00038356,18]
[359537622,1746096653575,-450.0,0.00038356,18]
[359537624,1746096653584,-450.0,0.00038356,18]
[359537626,1746096653593,-512.99,0.00038356,18]
[359537628,1746096653602,-450.0,0.00038356,18]
[359537630,1746096653612,-450.0,0.00038356,18]
[359537632,1746096653621,-450.0,0.00038356,18]
[359537634,1746096653631,-1241.99,0.00038356,18]
[359537636,1746096653641,-476.31,0.00038356,18]
[359537638,1746096653651,-584.629404,0.00038356,7]
[359537640,1746096653660,-450.0,0.00038356,18]
[359537642,1746096653669,-450.0,0.00038356,18]
[359537644,1746096653679,-500.0,0.00038356,18]
[359537646,1746096653688,-450.0,0.00038356,18]
[359537648,1746096653697,-450.0,0.00038356,18]
[359537650,1746096653707,-584.629404,0.00038356,7]
[359537652,1746096653717,-450.0,0.00038356,2]
[359537654,1746096653727,-450.0,0.00038356,18]
[359537656,1746096653736,-835.68,0.00038356,18]
[359537658,1746096653745,-519.38954674,0.00038356,18]
[359537660,1746096653754,-534.09,0.00038356,18]
[359537662,1746096653763,-450.0,0.00038356,18]
[359537664,1746096653773,-450.0,0.00038356,18]
[359537666,1746096653782,-450.0,0.00038356,18]
[359537680,1746096653903,-450.0,0.00038356,18]
[359537683,1746096653926,-450.0,0.00038356,18]
[359537685,1746096653935,-450.0,0.00038356,18]
[359537687,1746096653944,-586.32420351,0.00038356,18]
[359537689,1746096653954,-450.0,0.00038356,2]
[359537691,1746096653963,-300.0,0.00038356,18]
[359537693,1746096653973,-502.65038562,0.00038356,18]
[359537695,1746096653982,-450.0,0.00038356,18]
[359537697,1746096653991,-450.0,0.00038356,18]
[359537699,1746096654001,-450.0,0.00038356,3]
[359537701,1746096654010,-859.71,0.00038356,18]
[359537703,1746096654020,-450.0,0.00038356,18]
[359537705,1746096654033,-844.57,0.00038356,18]
[359537706,1746096654043,-25531.44,0.00038356,18]
[359537708,1746096654053,-450.0,0.00038356,18]
[359537710,1746096654062,-536.28753488,0.00038356,18]
[359537712,1746096654071,-450.0,0.00038356,18]
[359537714,1746096654081,-450.0,0.00038356,18]
[359537716,1746096654089,-519.48190186,0.00038356,18]
[359537718,1746096654098,-500.0,0.00038356,18]
[359537720,1746096654109,-450.0,0.00038356,18]
[359537722,1746096654119,-450.0,0.00038356,18]
[359537724,1746096654129,-450.0,0.00038356,18]
[359537726,1746096654138,-512.55589945,0.00038356,18]
[359537728,1746096654147,-450.0,0.00038356,18]
[359537730,1746096654158,-450.0,0.00038356,18]
[359537732,1746096654168,-450.0,0.00038356,18]
[359537734,1746096654177,-450.0,0.00038356,18]
[359537737,1746096654187,-500.0,0.00038356,18]
[359537738,1746096654197,-450.0,0.00038356,18]
[359537741,1746096654207,-450.0,0.00038356,18]
[359537743,1746096654217,-450.0,0.00038356,18]
[359537745,1746096654226,-521.26095523,0.00038356,18]
[359537747,1746096654236,-450.0,0.00038356,18]
[359537748,1746096654246,-450.0,0.00038356,18]
[359537750,1746096654255,-450.0,0.00038356,18]
[359537752,1746096654264,-450.0,0.00038356,18]
[359537754,1746096654274,-517.99518865,0.00038356,18]
[359537756,1746096654283,-450.0,0.00038356,18]
[359537758,1746096654292,-450.0,0.00038356,18]
[359537760,1746096654302,-508.0021128,0.00038356,18]
[359537762,1746096654311,-450.0,0.00038356,18]
[359537764,1746096654320,-437.31148129,0.00038356,18]
[359537766,1746096654329,-450.0,0.00038356,18]
[359537768,1746096654338,-500.0,0.00038356,18]
[359537770,1746096654347,-450.0,0.00038356,18]
[359537772,1746096654357,-150.0,0.00038356,2]
[359537774,1746096654366,-450.0,0.00038356,18]
[359537776,1746096654375,-450.0,0.00038356,18]
[359537778,1746096654384,-450.0,0.00038356,18]
[359537780,1746096654394,-450.0,0.00038356,18]
[359537782,1746096654403,-561.19,0.00038356,18]
[359537784,1746096654412,-450.0,0.00038356,18]
[359537786,1746096654422,-450.0,0.00038356,2]
[359537787,1746096654431,-508.84368406,0.00038356,18]
[359537789,1746096654441,-450.0,0.00038356,18]
[359537791,1746096654450,-450.0,0.00038356,18]
[359537793,1746096654460,-450.0,0.00038356,18]
[359537795,1746096654469,-202.78592141,0.00038356,18]
[359537797,1746096654479,-450.0,0.00038356,18]
[359537799,1746096654491,-450.0,0.00038356,18]
[359537801,1746096654500,-450.0,0.00038356,18]
[359537803,1746096654510,-498.933316,0.00038356,18]
[359537805,1746096654518,-450.02,0.00038356,18]
[359537807,1746096654528,-657.01,0.00038356,18]
[359537809,1746096654538,-450.0,0.00038356,18]
[359537811,1746096654547,-450.0,0.00038356,18]
[359537814,1746096654557,-450.0,0.00038356,18]
[359537816,1746096654566,-501.87,0.00038356,18]
[359537817,1746096654575,-519.97577729,0.00038356,18]
[359537819,1746096654584,-507.61641875,0.00038356,18]
[359537821,1746096654593,-450.0,0.00038356,18]
[359537823,1746096654602,-450.0,0.00038356,18]
[359537825,1746096654611,-1002.912,0.00038356,2]
[359537827,1746096654621,-470.0,0.00038356,18]
[359537829,1746096654631,-500.0,0.00038356,2]
[359537831,1746096654640,-500.0,0.00038356,2]
[359537833,1746096654649,-500.0,0.00038356,2]
[359537835,1746096654658,-500.0,0.00038356,2]
[359537837,1746096654668,-450.0,0.00038356,18]
[359537839,1746096654677,-500.0,0.00038356,2]
[359537841,1746096654686,-500.0,0.00038356,2]
[359537843,1746096654695,-450.0,0.00038356,18]
[359537845,1746096654704,-500.0,0.00038356,2]
[359537847,1746096654714,-568.11555352,0.00038356,18]
[359537849,1746096654723,-450.0,0.00038356,18]
[359537851,1746096654734,-500.0,0.00038356,2]
[359537853,1746096654743,-500.0,0.00038356,2]
[359537855,1746096654752,-450.0,0.00038356,18]
[359537857,1746096654761,-500.0,0.00038356,2]
[359537859,1746096654770,-792.06,0.00038356,18]
[359537861,1746096654779,-500.0,0.00038356,2]
[359537863,1746096654788,-500.0,0.00038356,18]
[359537865,1746096654798,-500.0,0.00038356,18]
[359537867,1746096654808,-500.0,0.00038356,18]
[359537869,1746096654817,-500.0,0.00038356,18]
[359537871,1746096654827,-450.0,0.00038356,18]
[359537873,1746096654836,-450.0,0.00038356,18]
[359537875,1746096654845,-500.0,0.00038356,18]
[359537877,1746096654855,-502.27670817,0.00038356,18]
[359537879,1746096654864,-3515.4,0.00038356,2]
[359537881,1746096654873,-761.73,0.00038356,18]
[359537883,1746096654883,-503.00988113,0.00038356,18]
[359537885,1746096654892,-756.48,0.00038356,18]
[359537887,1746096654901,-1539.14,0.00038356,18]
[359537889,1746096654910,-450.0,0.00038356,18]
[359537891,1746096654919,-450.0,0.00038356,2]
[359537893,1746096654929,-450.0,0.00038356,18]
[359537895,1746096654938,-450.0,0.00038356,18]
[359537897,1746096654948,-213.9422695,0.00038356,2]
[359537899,1746096654957,-2000.0,0.000384,2]
[359537901,1746096654967,-39380.61,0.000384,14]
[359537903,1746096654976,-5649.81,0.000384,14]
[359537905,1746096654986,-151.0,0.00038471,14]
[359537907,1746096654996,-177.823338,0.00038471,14]
[359537909,1746096655006,-177.823338,0.00038471,14]
[359537911,1746096655015,-151.0,0.00038471,14]
[359537913,1746096655024,-151.0,0.00038471,14]
[359537915,1746096655037,-2953.111486,0.00038471,14]
[359537917,1746096655046,-573.860945,0.00038471,14]
[359537919,1746096655055,-151.0,0.00038471,14]
[359537921,1746096655064,-573.860945,0.00038471,14]
[359537923,1746096655074,-1112.69348194,0.0003853,2]
[359537925,1746096655084,-170235.3064981,0.00038604,2]
[359537927,1746096655093,-150.0,0.0003861,2]
[359537929,1746096655102,-300.0,0.00038629,10]
[359537931,1746096655113,-150.0,0.0003863,18]
[359537933,1746096655122,-500.0,0.0003863,18]
[359537935,1746096655131,-450.0,0.0003863,18]
[359537937,1746096655140,-450.0,0.0003863,18]
[359537939,1746096655150,-450.0,0.0003863,18]
[359537941,1746096655160,-173.32884914,0.0003863,18]
[359537943,1746096655169,-450.0,0.0003863,18]
[359537945,1746096655178,-500.0,0.0003863,120]
[359537947,1746096655188,-450.0,0.0003863,18]
[359537949,1746096655199,-450.0,0.0003863,18]
[359537951,1746096655209,-2013.84,0.0003863,18]
[359537953,1746096655219,-450.0,0.0003863,18]
[359537955,1746096655229,-450.0,0.0003863,18]
[359537957,1746096655238,-450.0,0.0003863,18]
[359537958,1746096655248,-450.0,0.0003863,18]
[359537959,1746096655257,-450.0,0.0003863,18]
[359537960,1746096655266,-450.0,0.0003863,18]
[359537961,1746096655275,-185.56974922,0.0003863,18]
[359537962,1746096655284,-450.0,0.0003863,18]
[359537963,1746096655293,-804.87,0.0003863,18]
[359537964,1746096655303,-450.0,0.0003863,18]
[359537965,1746096655313,-478.72,0.0003863,18]
[359537966,1746096655322,-450.0,0.0003863,18]
[359537967,1746096655331,-450.0,0.0003863,18]
[359537968,1746096655340,-450.0,0.0003863,18]
[359537969,1746096655349,-450.0,0.0003863,18]
[359537971,1746096655358,-161.87051353,0.0003863,18]
[359537973,1746096655367,-450.0,0.0003863,18]
[359537975,1746096655377,-450.0,0.0003863,18]
[359537977,1746096655386,-450.0,0.0003863,18]
[359537979,1746096655396,-450.0,0.0003863,18]
[359537981,1746096655405,-450.0,0.0003863,18]
[359537983,1746096655414,-450.0,0.0003863,18]
[359537985,1746096655423,-450.0,0.0003863,18]
[359537987,1746096655432,-450.0,0.0003863,18]
[359537989,1746096655441,-450.0,0.0003863,18]
[359537991,1746096655451,-450.0,0.0003863,18]
[359537993,1746096655460,-187.44093984,0.0003863,18]
[359537995,1746096655470,-450.0,0.0003863,18]
[359537997,1746096655479,-568.92858073,0.0003863,18]
[359537999,1746096655489,-450.0,0.0003863,18]
[359538001,1746096655498,-195.40960587,0.0003863,18]
[359538003,1746096655507,-450.0,0.0003863,18]
[359538005,1746096655516,-450.0,0.0003863,18]
[359538007,1746096655525,-450.0,0.0003863,18]
[359538009,1746096655538,-450.0,0.0003863,18]
[359538011,1746096655547,-450.0,0.0003863,18]
[359538014,1746096655559,-450.0,0.0003863,18]
[359538015,1746096655568,-450.0,0.0003863,18]
[359538017,1746096655577,-576.22,0.0003863,18]
[359538019,1746096655586,-450.0,0.0003863,18]
[359538021,1746096655595,-450.0,0.0003863,18]
[359538023,1746096655604,-630.31,0.0003863,18]
[359538025,1746096655614,-150.46438133,0.0003863,18]
[359538027,1746096655623,-450.0,0.0003863,18]
[359538029,1746096655633,-450.0,0.0003863,18]
[359538031,1746096655642,-450.0,0.0003863,18]
[359538033,1746096655651,-576.32,0.0003863,2]
[359538035,1746096655660,-450.0,0.0003863,18]
[359538037,1746096655670,-450.0,0.0003863,18]
[359538039,1746096655679,-450.0,0.0003863,18]
[359538041,1746096655688,-170.03785473,0.0003863,18]
[359538043,1746096655697,-450.0,0.0003863,18]